[Event "Live Chess"]
[Site "Chess.com"]
[Date "2023.05.20"]
[Round "-"]
[White "JohanKjeldahl"]
[Black "VicLemon"]
[Result "1-0"]
[WhiteElo "1861"]
[BlackElo "1361"]
[TimeControl "300"]
[EndTime "15:13:41 PDT"]
[Termination "JohanKjeldahl won by resignation"]

1. e4 {[%clk 0:04:57.6]} 1... Nf6 {[%clk 0:04:56.4]} 2. e5 {[%clk 0:04:52.8]}
2... Nd5 {[%clk 0:04:55.3]} 3. d4 {[%clk 0:04:51.5]} 3... d6 {[%clk 0:04:54.2]}
4. c4 {[%clk 0:04:49.3]} 4... Nb6 {[%clk 0:04:52.2]} 5. Nf3 {[%clk 0:04:48.7]}
5... Bg4 {[%clk 0:04:42.7]} 6. exd6 {[%clk 0:04:45.7]} 6... cxd6 {[%clk
0:04:40.9]} 7. Be2 {[%clk 0:04:44.5]} 7... g6 {[%clk 0:04:39.1]} 8. Nc3 {[%clk
0:04:41.7]} 8... Bg7 {[%clk 0:04:37.8]} 9. Be3 {[%clk 0:04:39.3]} 9... O-O
{[%clk 0:04:35.3]} 10. b3 {[%clk 0:04:35.6]} 10... Nc6 {[%clk 0:04:24.8]} 11.
O-O {[%clk 0:04:32.3]} 11... e5 {[%clk 0:04:14.7]} 12. d5 {[%clk 0:04:29.4]}
12... Ne7 {[%clk 0:04:05.5]} 13. Rc1 {[%clk 0:04:26.7]} 13... f5 {[%clk
0:04:03.1]} 14. Ng5 {[%clk 0:04:24.4]} 14... Bxe2 {[%clk 0:03:33.1]} 15. Qxe2
{[%clk 0:04:20.9]} 15... Rf6 {[%clk 0:03:16.3]} 16. Ne6 {[%clk 0:04:19.1]} 16...
Qd7 {[%clk 0:03:04.1]} 17. Bg5 {[%clk 0:04:16.4]} 17... Rf7 {[%clk 0:03:00.6]}
18. Nb5 {[%clk 0:04:07.9]} 18... a6 {[%clk 0:02:50.9]} 19. Nc3 {[%clk
0:04:05.6]} 19... h6 {[%clk 0:02:41.8]} 20. Bxe7 {[%clk 0:04:03]} 20... Qxe7
{[%clk 0:02:36.8]} 21. Nxg7 {[%clk 0:04:01.3]} 21... Kxg7 {[%clk 0:02:28.6]} 22.
Qd2 {[%clk 0:03:47.3]} 22... Nd7 {[%clk 0:02:25.5]} 23. b4 {[%clk 0:03:39.1]}
23... e4 {[%clk 0:02:22.7]} 24. Ne2 {[%clk 0:03:30.7]} 24... Ne5 {[%clk
0:02:19.8]} 25. c5 {[%clk 0:03:27.4]} 25... Nd3 {[%clk 0:02:15.6]} 26. Qc3+
{[%clk 0:03:07.3]} 26... Kh7 {[%clk 0:02:03.8]} 27. Rc2 {[%clk 0:02:59.9]} 27...
Rc8 {[%clk 0:01:53.9]} 28. c6 {[%clk 0:02:58.8]} 28... bxc6 {[%clk 0:01:46.6]}
29. dxc6 {[%clk 0:02:56.7]} 29... d5 {[%clk 0:01:42.5]} 30. Nd4 {[%clk 0:02:55]}
30... Nxb4 {[%clk 0:01:30.2]} 31. Rb2 {[%clk 0:02:52.1]} 31... Nd3 {[%clk
0:01:22.6]} 32. Rb7 {[%clk 0:02:47.9]} 32... Rc7 {[%clk 0:01:20.8]} 33. Rxc7
{[%clk 0:02:43.3]} 33... Qxc7 {[%clk 0:01:17.5]} 34. Rb1 {[%clk 0:02:41.7]}
34... Qf4 {[%clk 0:01:06.6]} 35. Rf1 {[%clk 0:02:03.6]} 35... Qc7 {[%clk
0:00:28.4]} 36. Ne6 {[%clk 0:02:01.1]} 36... Qd6 {[%clk 0:00:19.3]} 37. c7
{[%clk 0:01:59.5]} 37... Qxe6 {[%clk 0:00:15.1]} 38. c8=Q {[%clk 0:01:57.7]}
38... Qxc8 {[%clk 0:00:12.5]} 39. Qxc8 {[%clk 0:01:56.5]} 1-0

[Event "Live Chess"]
[Site "Chess.com"]
[Date "2023.05.20"]
[Round "-"]
[White "McSlash1"]
[Black "Hussamalhaidar"]
[Result "1-0"]
[WhiteElo "2012"]
[BlackElo "1020"]
[TimeControl "300"]
[EndTime "15:13:58 PDT"]
[Termination "McSlash1 won by checkmate"]

1. e4 {[%clk 0:04:59.3]} 1... Nc6 {[%clk 0:04:56.3]} 2. d4 {[%clk 0:04:57.6]}
2... e5 {[%clk 0:04:52.7]} 3. d5 {[%clk 0:04:56.8]} 3... Nce7 {[%clk 0:04:50.4]}
4. Nf3 {[%clk 0:04:53.5]} 4... Ng6 {[%clk 0:04:49.3]} 5. c4 {[%clk 0:04:47.7]}
5... Bc5 {[%clk 0:04:48.4]} 6. Nc3 {[%clk 0:04:44.2]} 6... Nf6 {[%clk
0:04:46.1]} 7. a3 {[%clk 0:04:43.8]} 7... a6 {[%clk 0:04:43.9]} 8. b4 {[%clk
0:04:41.1]} 8... Ba7 {[%clk 0:04:41.5]} 9. c5 {[%clk 0:04:39.8]} 9... d6 {[%clk
0:04:32.6]} 10. Qa4+ {[%clk 0:04:12.3]} 10... Bd7 {[%clk 0:04:22.2]} 11. c6
{[%clk 0:04:11]} 11... bxc6 {[%clk 0:04:20.1]} 12. dxc6 {[%clk 0:04:10.9]} 12...
Be6 {[%clk 0:04:11.6]} 13. Bg5 {[%clk 0:04:09.3]} 13... O-O {[%clk 0:03:58.5]}
14. Be2 {[%clk 0:04:05.7]} 14... a5 {[%clk 0:03:56.6]} 15. b5 {[%clk 0:04:03.9]}
15... h6 {[%clk 0:03:46.1]} 16. Bd2 {[%clk 0:04:01]} 16... h5 {[%clk 0:03:34.8]}
17. O-O {[%clk 0:03:59.2]} 17... Ng4 {[%clk 0:03:22.4]} 18. Ng5 {[%clk
0:03:54.5]} 18... Nxf2 {[%clk 0:02:57.9]} 19. Rxf2 {[%clk 0:03:52.7]} 19... Bc8
{[%clk 0:02:45.5]} 20. Rf1 {[%clk 0:03:49.2]} 20... f5 {[%clk 0:02:40.3]} 21.
Bc4+ {[%clk 0:03:46.2]} 21... Kh8 {[%clk 0:02:36.6]} 22. Nf7+ {[%clk 0:03:45.6]}
22... Rxf7 {[%clk 0:02:31.5]} 23. Bxf7 {[%clk 0:03:45.5]} 23... Qf6 {[%clk
0:02:24]} 24. Bxg6 {[%clk 0:03:42.2]} 24... Qxg6 {[%clk 0:02:20]} 25. exf5
{[%clk 0:03:41.5]} 25... Qxf5 {[%clk 0:02:18.3]} 26. Qe4 {[%clk 0:03:38]} 26...
Bxf2+ {[%clk 0:01:57.9]} 27. Rxf2 {[%clk 0:03:35.8]} 27... Qxe4 {[%clk 0:01:57]}
28. Nxe4 {[%clk 0:03:35.7]} 28... a4 {[%clk 0:01:54.7]} 29. Ng5 {[%clk
0:03:34.5]} 29... Bg4 {[%clk 0:01:49.9]} 30. h3 {[%clk 0:03:32.5]} 30... Bd1
{[%clk 0:01:40.6]} 31. Rf7 {[%clk 0:03:30.4]} 31... Kg8 {[%clk 0:01:32.4]} 32.
Rxc7 {[%clk 0:03:28.7]} 32... Ra5 {[%clk 0:01:29]} 33. Bxa5 {[%clk 0:03:27.1]}
33... g6 {[%clk 0:01:24.5]} 34. b6 {[%clk 0:03:23.6]} 34... d5 {[%clk
0:01:20.8]} 35. b7 {[%clk 0:03:22.2]} 35... d4 {[%clk 0:01:19.7]} 36. b8=Q#
{[%clk 0:03:21.2]} 1-0

[Event "Live Chess"]
[Site "Chess.com"]
[Date "2023.05.20"]
[Round "-"]
[White "fso"]
[Black "jk0110"]
[Result "1-0"]
[WhiteElo "2234"]
[BlackElo "1118"]
[TimeControl "300"]
[EndTime "15:14:14 PDT"]
[Termination "fso won by checkmate"]

1. e4 {[%clk 0:04:57.3]} 1... e5 {[%clk 0:04:58.9]} 2. f4 {[%clk 0:04:51.2]}
2... d5 {[%clk 0:04:55.8]} 3. exd5 {[%clk 0:04:48.4]} 3... e4 {[%clk 0:04:48.8]}
4. d3 {[%clk 0:04:46.7]} 4... Nf6 {[%clk 0:04:45.5]} 5. dxe4 {[%clk 0:04:40.3]}
5... Nxe4 {[%clk 0:04:44.3]} 6. Be3 {[%clk 0:04:29.1]} 6... Qh4+ {[%clk
0:04:21.7]} 7. g3 {[%clk 0:03:30.7]} 7... Nxg3 {[%clk 0:04:19.9]} 8. hxg3 {[%clk
0:03:30.6]} 8... Qxh1 {[%clk 0:04:08.8]} 9. Kf2 {[%clk 0:03:25.7]} 9... Qh2+
{[%clk 0:03:50.3]} 10. Bg2 {[%clk 0:03:24.2]} 10... Qh6 {[%clk 0:03:20.3]} 11.
Nc3 {[%clk 0:03:17.3]} 11... Bd6 {[%clk 0:03:14.1]} 12. Nf3 {[%clk 0:03:07.9]}
12... Bg4 {[%clk 0:03:02.4]} 13. Qd3 {[%clk 0:03:01.8]} 13... O-O {[%clk
0:02:50.7]} 14. Ng5 {[%clk 0:02:49.7]} 14... g6 {[%clk 0:02:36.3]} 15. Rh1
{[%clk 0:02:45.5]} 15... Qg7 {[%clk 0:02:30.7]} 16. Bd4 {[%clk 0:02:31.2]} 16...
f6 {[%clk 0:02:23.5]} 17. Rxh7 {[%clk 0:02:25.8]} 17... Qxh7 {[%clk 0:02:15.6]}
18. Nxh7 {[%clk 0:02:24.3]} 18... Kxh7 {[%clk 0:02:15.5]} 19. Ne4 {[%clk
0:02:19.3]} 19... Bf5 {[%clk 0:02:01.7]} 20. g4 {[%clk 0:02:10.7]} 20... Bxe4
{[%clk 0:01:56.3]} 21. Bxe4 {[%clk 0:02:07.5]} 21... Bxf4 {[%clk 0:01:35.7]} 22.
Bxg6+ {[%clk 0:02:03]} 22... Kg7 {[%clk 0:01:35.2]} 23. Bf5 {[%clk 0:01:57.7]}
23... c6 {[%clk 0:01:24.9]} 24. Qe4 {[%clk 0:01:55.1]} 24... Bg5 {[%clk
0:01:11.8]} 25. c4 {[%clk 0:01:51.2]} 25... Bh4+ {[%clk 0:00:58.6]} 26. Kf3
{[%clk 0:01:47.1]} 26... Bg5 {[%clk 0:00:57.3]} 27. Qe6 {[%clk 0:01:29.6]} 27...
Na6 {[%clk 0:00:50.3]} 28. Bb1 {[%clk 0:01:12.9]} 28... Rae8 {[%clk 0:00:40]}
29. Qf5 {[%clk 0:01:09.6]} 29... b6 {[%clk 0:00:28.5]} 30. Qh7# {[%clk
0:01:05.4]} 1-0

[Event "Live Chess"]
[Site "Chess.com"]
[Date "2023.05.20"]
[Round "-"]
[White "LutherSullivan"]
[Black "BJAW87"]
[Result "1-0"]
[WhiteElo "2040"]
[BlackElo "1430"]
[TimeControl "300"]
[EndTime "15:14:19 PDT"]
[Termination "LutherSullivan won on time"]

1. e4 {[%clk 0:04:58.1]} 1... c6 {[%clk 0:04:59]} 2. d4 {[%clk 0:04:55.2]} 2...
d5 {[%clk 0:04:58.3]} 3. Nc3 {[%clk 0:04:51.3]} 3... dxe4 {[%clk 0:04:57.2]} 4.
Nxe4 {[%clk 0:04:51.2]} 4... Nf6 {[%clk 0:04:56.8]} 5. Nxf6+ {[%clk 0:04:49.9]}
5... exf6 {[%clk 0:04:56.7]} 6. Qe2+ {[%clk 0:04:47.3]} 6... Be7 {[%clk
0:04:54.6]} 7. Be3 {[%clk 0:04:28.4]} 7... O-O {[%clk 0:04:52.4]} 8. O-O-O
{[%clk 0:04:26.3]} 8... Re8 {[%clk 0:04:42.4]} 9. Kb1 {[%clk 0:03:12.3]} 9...
Be6 {[%clk 0:04:29.3]} 10. Nf3 {[%clk 0:03:07.8]} 10... Qa5 {[%clk 0:04:00.5]}
11. b3 {[%clk 0:03:00.3]} 11... Na6 {[%clk 0:03:17.2]} 12. c3 {[%clk 0:02:38.3]}
12... Nc7 {[%clk 0:02:19.6]} 13. Bd2 {[%clk 0:02:01.3]} 13... Qb6 {[%clk
0:02:03.3]} 14. c4 {[%clk 0:01:53.4]} 14... c5 {[%clk 0:01:44.6]} 15. Be3 {[%clk
0:01:42.5]} 15... a5 {[%clk 0:01:37.1]} 16. dxc5 {[%clk 0:00:49.3]} 16... Bxc5
{[%clk 0:01:32.5]} 17. Bxc5 {[%clk 0:00:49.2]} 17... Qxc5 {[%clk 0:01:32.4]} 18.
Qe3 {[%clk 0:00:48.3]} 18... Qa3 {[%clk 0:01:21]} 19. Qc3 {[%clk 0:00:45.8]}
19... a4 {[%clk 0:01:15.3]} 20. Qb2 {[%clk 0:00:44.8]} 20... Qc5 {[%clk
0:01:08.1]} 21. Nd4 {[%clk 0:00:43.7]} 21... Bf5+ {[%clk 0:00:45]} 22. Nxf5
{[%clk 0:00:40.2]} 22... Qxf5+ {[%clk 0:00:44.9]} 23. Bd3 {[%clk 0:00:39.8]}
23... Qe6 {[%clk 0:00:36]} 24. Qc3 {[%clk 0:00:35.7]} 24... a3 {[%clk
0:00:34.4]} 25. Rhe1 {[%clk 0:00:28.7]} 25... Qg4 {[%clk 0:00:31.2]} 26. g3
{[%clk 0:00:20.6]} 26... Rxe1 {[%clk 0:00:28.1]} 27. Rxe1 {[%clk 0:00:19.6]}
27... Ne6 {[%clk 0:00:27.2]} 28. f3 {[%clk 0:00:11.7]} 28... Qh3 {[%clk
0:00:24.1]} 29. Qc2 {[%clk 0:00:10.3]} 29... Nd4 {[%clk 0:00:22.8]} 30. Qf2
{[%clk 0:00:09.9]} 30... Nxb3 {[%clk 0:00:18.9]} 31. g4 {[%clk 0:00:09.3]} 31...
Qh6 {[%clk 0:00:14.4]} 32. axb3 {[%clk 0:00:07.9]} 32... a2+ {[%clk 0:00:13.4]}
33. Ka1 {[%clk 0:00:07.3]} 33... Qg5 {[%clk 0:00:09.5]} 34. Qe3 {[%clk
0:00:06.8]} 34... Qxe3 {[%clk 0:00:08.6]} 35. Rxe3 {[%clk 0:00:06.7]} 35... Rf8
{[%clk 0:00:07.8]} 36. Re7 {[%clk 0:00:06.1]} 36... g6 {[%clk 0:00:06.7]} 37.
Rxb7 {[%clk 0:00:06]} 37... h5 {[%clk 0:00:05.9]} 38. Kxa2 {[%clk 0:00:05.9]}
38... Kg7 {[%clk 0:00:05.3]} 39. gxh5 {[%clk 0:00:04.8]} 39... gxh5 {[%clk
0:00:04.4]} 40. Kb2 {[%clk 0:00:04.7]} 40... Kh6 {[%clk 0:00:03.4]} 41. Kc3
{[%clk 0:00:04.6]} 41... Rg8 {[%clk 0:00:02.8]} 42. c5 {[%clk 0:00:04.5]} 42...
Rg7 {[%clk 0:00:02.4]} 43. Bc4 {[%clk 0:00:04.4]} 43... Kg5 {[%clk 0:00:02]} 44.
Kb4 {[%clk 0:00:04.3]} 44... Rg6 {[%clk 0:00:01.5]} 45. Rb6 {[%clk 0:00:04.2]}
45... f5 {[%clk 0:00:01.4]} 46. Rd6 {[%clk 0:00:01.7]} 46... Kf4 {[%clk
0:00:01.3]} 47. Rd4+ {[%clk 0:00:00.8]} 47... Kg5 {[%clk 0:00:00.9]} 48. Rd1
{[%clk 0:00:00.7]} 48... Kh6 {[%clk 0:00:00.5]} 49. Rg1 {[%clk 0:00:00.6]} 49...
Kg7 {[%clk 0:00:00.4]} 50. f4 {[%clk 0:00:00.5]} 1-0

[Event "Live Chess"]
[Site "Chess.com"]
[Date "2023.05.20"]
[Round "-"]
[White "JoeRoot66"]
[Black "CameronM1234"]
[Result "1-0"]
[WhiteElo "1910"]
[BlackElo "1090"]
[TimeControl "300"]
[EndTime "15:14:32 PDT"]
[Termination "JoeRoot66 won by checkmate"]

1. e4 {[%clk 0:04:58.2]} 1... g6 {[%clk 0:04:59.2]} 2. d4 {[%clk 0:04:57.5]}
2... Bg7 {[%clk 0:04:58.8]} 3. Bc4 {[%clk 0:04:56.6]} 3... d6 {[%clk 0:04:57.7]}
4. Nf3 {[%clk 0:04:56.2]} 4... Nf6 {[%clk 0:04:56.2]} 5. Qe2 {[%clk 0:04:55.6]}
5... c6 {[%clk 0:04:40.3]} 6. O-O {[%clk 0:04:52]} 6... O-O {[%clk 0:04:38.7]}
7. h3 {[%clk 0:04:51.1]} 7... Nbd7 {[%clk 0:04:34.5]} 8. e5 {[%clk 0:04:46.8]}
8... dxe5 {[%clk 0:04:33.5]} 9. dxe5 {[%clk 0:04:46.7]} 9... Ne8 {[%clk
0:04:22.3]} 10. e6 {[%clk 0:04:45.7]} 10... fxe6 {[%clk 0:04:15.5]} 11. Qxe6+
{[%clk 0:04:45.6]} 11... Kh8 {[%clk 0:04:13.9]} 12. Ng5 {[%clk 0:04:42.5]} 12...
Nc5 {[%clk 0:04:11]} 13. Nf7+ {[%clk 0:04:36.7]} 13... Kg8 {[%clk 0:04:08.2]}
14. Nh6+ {[%clk 0:04:35.4]} 14... Kh8 {[%clk 0:04:06.9]} 15. Qg8+ {[%clk
0:04:34.1]} 15... Rxg8 {[%clk 0:04:04.8]} 16. Nf7# {[%clk 0:04:34]} 1-0

[Event "Live Chess"]
[Site "Chess.com"]
[Date "2023.05.20"]
[Round "-"]
[White "TheSmoulderingMaster"]
[Black "Nazar_777"]
[Result "0-1"]
[WhiteElo "1714"]
[BlackElo "1626"]
[TimeControl "300"]
[EndTime "15:14:32 PDT"]
[Termination "Nazar_777 won by checkmate"]

1. e4 {[%clk 0:04:58.5]} 1... e6 {[%clk 0:04:58.4]} 2. d4 {[%clk 0:04:56.7]}
2... a6 {[%clk 0:04:57.9]} 3. Nc3 {[%clk 0:04:55.6]} 3... h5 {[%clk 0:04:57.3]}
4. Nf3 {[%clk 0:04:54.8]} 4... c5 {[%clk 0:04:56.4]} 5. Bf4 {[%clk 0:04:51.2]}
5... cxd4 {[%clk 0:04:55.4]} 6. Nxd4 {[%clk 0:04:49.1]} 6... Nc6 {[%clk
0:04:54.8]} 7. Be3 {[%clk 0:04:44.4]} 7... Nf6 {[%clk 0:04:53.5]} 8. Bc4 {[%clk
0:04:42.2]} 8... Qc7 {[%clk 0:04:52.5]} 9. Bb3 {[%clk 0:04:41.2]} 9... Be7
{[%clk 0:04:51.4]} 10. O-O {[%clk 0:04:39.9]} 10... b5 {[%clk 0:04:50.3]} 11.
Kh1 {[%clk 0:04:37.1]} 11... Ng4 {[%clk 0:04:49.1]} 12. Nxc6 {[%clk 0:04:28.8]}
12... Qxh2# {[%clk 0:04:47.4]} 0-1

[Event "Live Chess"]
[Site "Chess.com"]
[Date "2023.05.20"]
[Round "-"]
[White "AbilifyXL"]
[Black "GMHarry-youtube"]
[Result "1/2-1/2"]
[WhiteElo "1973"]
[BlackElo "2030"]
[TimeControl "300"]
[EndTime "15:14:40 PDT"]
[Termination "Game drawn by stalemate"]

1. d4 {[%clk 0:04:57.9]} 1... Nf6 {[%clk 0:04:58.5]} 2. c4 {[%clk 0:04:56.9]}
2... g6 {[%clk 0:04:56.1]} 3. Nc3 {[%clk 0:04:55.8]} 3... d5 {[%clk 0:04:54.3]}
4. Nf3 {[%clk 0:04:54.2]} 4... Bg7 {[%clk 0:04:53.2]} 5. Bg5 {[%clk 0:04:53]}
5... O-O {[%clk 0:04:51.5]} 6. Bxf6 {[%clk 0:04:51.8]} 6... Bxf6 {[%clk
0:04:50.5]} 7. cxd5 {[%clk 0:04:51.1]} 7... c6 {[%clk 0:04:44.2]} 8. dxc6 {[%clk
0:04:50.1]} 8... Nxc6 {[%clk 0:04:42]} 9. e3 {[%clk 0:04:49.4]} 9... e5 {[%clk
0:04:34.8]} 10. d5 {[%clk 0:04:48.3]} 10... Ne7 {[%clk 0:04:31.4]} 11. e4 {[%clk
0:04:47]} 11... Bg7 {[%clk 0:04:30.3]} 12. Be2 {[%clk 0:04:45.8]} 12... f5
{[%clk 0:04:29.4]} 13. Qb3 {[%clk 0:04:39.4]} 13... Kh8 {[%clk 0:04:26.2]} 14.
Bd3 {[%clk 0:04:34.5]} 14... f4 {[%clk 0:04:23.6]} 15. O-O {[%clk 0:04:33.3]}
15... h6 {[%clk 0:04:17.6]} 16. Rac1 {[%clk 0:04:23.2]} 16... g5 {[%clk
0:04:16]} 17. Rfd1 {[%clk 0:04:12.5]} 17... Ng6 {[%clk 0:04:08.6]} 18. Nb5
{[%clk 0:04:04.3]} 18... g4 {[%clk 0:04:06.8]} 19. Ne1 {[%clk 0:04:01.4]} 19...
Qh4 {[%clk 0:04:05.4]} 20. Bf1 {[%clk 0:03:52.9]} 20... f3 {[%clk 0:03:52.8]}
21. g3 {[%clk 0:03:47.7]} 21... Qg5 {[%clk 0:03:51.4]} 22. Nc7 {[%clk
0:03:37.4]} 22... Rb8 {[%clk 0:03:48.1]} 23. Ne6 {[%clk 0:03:36.1]} 23... Bxe6
{[%clk 0:03:46.5]} 24. dxe6 {[%clk 0:03:36]} 24... h5 {[%clk 0:03:45.1]} 25. Rc7
{[%clk 0:03:25]} 25... h4 {[%clk 0:03:41.6]} 26. Rxb7 {[%clk 0:03:20]} 26...
Rxb7 {[%clk 0:03:38.4]} 27. Qxb7 {[%clk 0:03:17.7]} 27... hxg3 {[%clk
0:03:37.8]} 28. hxg3 {[%clk 0:03:12]} 28... Nf4 {[%clk 0:03:26.4]} 29. e7 {[%clk
0:03:06.1]} 29... Re8 {[%clk 0:03:23.9]} 30. Rd8 {[%clk 0:03:04.1]} 30... Qh5
{[%clk 0:03:13.6]} 31. Qd7 {[%clk 0:02:54.8]} 31... Kh7 {[%clk 0:02:58.6]} 32.
Qxe8 {[%clk 0:02:53]} 32... Qxe8 {[%clk 0:02:55]} 33. Rxe8 {[%clk 0:02:52]}
33... Ng6 {[%clk 0:02:54.9]} 34. Bc4 {[%clk 0:02:40.9]} 34... Bf6 {[%clk
0:02:53.4]} 35. Ra8 {[%clk 0:02:29.7]} 35... Nxe7 {[%clk 0:02:51.2]} 36. Rxa7
{[%clk 0:02:28.1]} 36... Kg6 {[%clk 0:02:50.8]} 37. Be6 {[%clk 0:02:25.5]} 37...
Nc6 {[%clk 0:02:49.8]} 38. Ra6 {[%clk 0:02:23.5]} 38... Nd4 {[%clk 0:02:48.7]}
39. Bxg4 {[%clk 0:02:22]} 39... Kg5 {[%clk 0:02:43.7]} 40. Bxf3 {[%clk
0:02:20.9]} 40... Bg7 {[%clk 0:02:42.6]} 41. Kg2 {[%clk 0:02:20]} 41... Bh6
{[%clk 0:02:40.9]} 42. Bd1 {[%clk 0:02:17.4]} 42... Bg7 {[%clk 0:02:38.6]} 43.
Nf3+ {[%clk 0:02:16.6]} 43... Nxf3 {[%clk 0:02:33.9]} 44. Bxf3 {[%clk
0:02:14.6]} 44... Bf8 {[%clk 0:02:33.1]} 45. a4 {[%clk 0:02:06.5]} 45... Bc5
{[%clk 0:02:31.4]} 46. Rc6 {[%clk 0:02:04.8]} 46... Bd6 {[%clk 0:02:31.3]} 47.
Rxd6 {[%clk 0:02:03.7]} 1/2-1/2

[Event "Live Chess"]
[Site "Chess.com"]
[Date "2023.05.20"]
[Round "-"]
[White "JbbChess726"]
[Black "ViktorTheCoolBoy"]
[Result "0-1"]
[WhiteElo "416"]
[BlackElo "2520"]
[TimeControl "300"]
[EndTime "15:14:41 PDT"]
[Termination "ViktorTheCoolBoy won by resignation"]

1. e4 {[%clk 0:04:58.8]} 1... e5 {[%clk 0:04:57]} 2. Nf3 {[%clk 0:04:57.9]} 2...
Nc6 {[%clk 0:04:55.9]} 3. Bc4 {[%clk 0:04:56.4]} 3... Nf6 {[%clk 0:04:54.7]} 4.
Ng5 {[%clk 0:04:54.7]} 4... d5 {[%clk 0:04:53.2]} 5. exd5 {[%clk 0:04:53.3]}
5... Na5 {[%clk 0:04:52.2]} 6. b3 {[%clk 0:04:51.8]} 6... h6 {[%clk 0:04:46.7]}
7. Nf3 {[%clk 0:04:46]} 7... e4 {[%clk 0:04:45.5]} 8. Nd4 {[%clk 0:04:41.2]}
8... Nxd5 {[%clk 0:04:43.7]} 9. Bxd5 {[%clk 0:04:39.5]} 9... Qxd5 {[%clk
0:04:42.3]} 10. Ne2 {[%clk 0:04:35.5]} 10... Be7 {[%clk 0:04:37.3]} 11. Bb2
{[%clk 0:04:34.4]} 11... O-O {[%clk 0:04:36.1]} 12. Ng3 {[%clk 0:04:31.9]} 12...
Nc6 {[%clk 0:04:30.4]} 13. O-O {[%clk 0:04:29.6]} 13... g6 {[%clk 0:04:20.7]}
14. Re1 {[%clk 0:04:28]} 14... f5 {[%clk 0:04:19.4]} 15. Nc3 {[%clk 0:04:22.4]}
15... Qf7 {[%clk 0:04:16.6]} 16. Re3 {[%clk 0:04:10]} 16... f4 {[%clk 0:04:08]}
17. Rxe4 {[%clk 0:04:02.8]} 17... fxg3 {[%clk 0:04:05.9]} 18. fxg3 {[%clk
0:04:00.4]} 18... Bf5 {[%clk 0:03:59.9]} 19. Rh4 {[%clk 0:03:56.6]} 19... Bxh4
{[%clk 0:03:58.6]} 20. gxh4 {[%clk 0:03:55.3]} 20... Bxc2 {[%clk 0:03:56.6]} 0-1

[Event "Live Chess"]
[Site "Chess.com"]
[Date "2023.05.20"]
[Round "-"]
[White "Horseymobile"]
[Black "nigelst"]
[Result "0-1"]
[WhiteElo "1251"]
[BlackElo "1825"]
[TimeControl "300"]
[EndTime "15:14:48 PDT"]
[Termination "nigelst won on time"]

1. d4 {[%clk 0:04:58.5]} 1... Nf6 {[%clk 0:04:57.9]} 2. c4 {[%clk 0:04:57.5]}
2... e6 {[%clk 0:04:57.4]} 3. Nc3 {[%clk 0:04:56.5]} 3... Bb4 {[%clk 0:04:56.8]}
4. Qc2 {[%clk 0:04:53.2]} 4... c5 {[%clk 0:04:54.5]} 5. Nf3 {[%clk 0:04:50.6]}
5... Nc6 {[%clk 0:04:52.7]} 6. dxc5 {[%clk 0:04:40.6]} 6... Bxc5 {[%clk
0:04:44.2]} 7. Bg5 {[%clk 0:04:33]} 7... Qb6 {[%clk 0:04:32.4]} 8. e3 {[%clk
0:04:27]} 8... Nb4 {[%clk 0:04:25.9]} 9. Qd2 {[%clk 0:04:12.6]} 9... Be7 {[%clk
0:04:12.6]} 10. Na4 {[%clk 0:04:01.3]} 10... Qa5 {[%clk 0:04:07.7]} 11. Nc3
{[%clk 0:03:31.1]} 11... O-O {[%clk 0:03:55.5]} 12. Be2 {[%clk 0:03:26.3]} 12...
b6 {[%clk 0:03:43]} 13. O-O {[%clk 0:03:24.1]} 13... Bb7 {[%clk 0:03:41.5]} 14.
a3 {[%clk 0:03:20.2]} 14... Nc6 {[%clk 0:03:34.3]} 15. b4 {[%clk 0:03:09.3]}
15... Qf5 {[%clk 0:03:32.4]} 16. Bd3 {[%clk 0:03:00.5]} 16... Qg4 {[%clk
0:03:28.3]} 17. h3 {[%clk 0:02:50.3]} 17... Qh5 {[%clk 0:03:24.9]} 18. e4 {[%clk
0:02:06.5]} 18... Ne8 {[%clk 0:02:41.6]} 19. Be3 {[%clk 0:01:45.1]} 19... Ne5
{[%clk 0:02:23.8]} 20. Nxe5 {[%clk 0:01:26.6]} 20... Qxe5 {[%clk 0:02:20.3]} 21.
f4 {[%clk 0:01:24.3]} 21... Qc7 {[%clk 0:02:10.4]} 22. Qe2 {[%clk 0:00:53.7]}
22... Rc8 {[%clk 0:02:05.7]} 23. e5 {[%clk 0:00:48.7]} 23... f5 {[%clk
0:01:50.8]} 24. exf6 {[%clk 0:00:47.2]} 24... Nxf6 {[%clk 0:01:48.6]} 25. f5
{[%clk 0:00:40.1]} 25... Qc6 {[%clk 0:01:38]} 26. fxe6 {[%clk 0:00:36.4]} 26...
dxe6 {[%clk 0:01:23]} 27. b5 {[%clk 0:00:28.9]} 27... Qd7 {[%clk 0:01:06.1]} 28.
Bg5 {[%clk 0:00:25.5]} 28... Rcd8 {[%clk 0:00:58]} 29. Rad1 {[%clk 0:00:22.5]}
29... Qc8 {[%clk 0:00:46.8]} 30. Bxf6 {[%clk 0:00:19.8]} 30... Bxf6 {[%clk
0:00:44.6]} 31. Qh5 {[%clk 0:00:17.6]} 31... g6 {[%clk 0:00:42.3]} 32. Bxg6
{[%clk 0:00:15.9]} 32... hxg6 {[%clk 0:00:40.8]} 33. Qxg6+ {[%clk 0:00:15.5]}
33... Bg7 {[%clk 0:00:40.4]} 34. Rxd8 {[%clk 0:00:10.4]} 34... Qc5+ {[%clk
0:00:38.1]} 35. Kh2 {[%clk 0:00:08.9]} 35... Rxd8 {[%clk 0:00:37.1]} 36. Ne4
{[%clk 0:00:05.8]} 36... Bxe4 {[%clk 0:00:35.2]} 37. Qxe4 {[%clk 0:00:04.8]}
37... Qd6+ {[%clk 0:00:34.7]} 38. Kh1 {[%clk 0:00:03.6]} 38... Qd4 {[%clk
0:00:32.8]} 39. Qxe6+ {[%clk 0:00:02.7]} 39... Kh8 {[%clk 0:00:32]} 40. Re1
{[%clk 0:00:01.6]} 40... Rf8 {[%clk 0:00:30]} 41. Qg4 {[%clk 0:00:00.1]} 41...
Qf6 {[%clk 0:00:27.2]} 0-1

[Event "Live Chess"]
[Site "Chess.com"]
[Date "2023.05.20"]
[Round "-"]
[White "Conradical12"]
[Black "Singapourfeuj"]
[Result "0-1"]
[WhiteElo "1601"]
[BlackElo "2239"]
[TimeControl "300"]
[EndTime "15:15:00 PDT"]
[Termination "Singapourfeuj won by resignation"]

1. e4 {[%clk 0:04:57.3]} 1... e6 {[%clk 0:04:59.3]} 2. d4 {[%clk 0:04:55.7]}
2... d5 {[%clk 0:04:58.5]} 3. c4 {[%clk 0:04:53.3]} 3... dxe4 {[%clk 0:04:56.8]}
4. Nc3 {[%clk 0:04:52.1]} 4... Nf6 {[%clk 0:04:55.8]} 5. Bg5 {[%clk 0:04:50.6]}
5... Be7 {[%clk 0:04:55]} 6. f3 {[%clk 0:04:48.7]} 6... exf3 {[%clk 0:04:53.9]}
7. Nxf3 {[%clk 0:04:48.2]} 7... c5 {[%clk 0:04:53.2]} 8. dxc5 {[%clk 0:04:43]}
8... Qxd1+ {[%clk 0:04:50.5]} 9. Rxd1 {[%clk 0:04:42.9]} 9... Nbd7 {[%clk
0:04:48.5]} 10. Nb5 {[%clk 0:04:39]} 10... O-O {[%clk 0:04:47.1]} 11. Nc7 {[%clk
0:04:35.2]} 11... Rb8 {[%clk 0:04:45.9]} 12. Bf4 {[%clk 0:04:32.5]} 12... Nh5
{[%clk 0:04:41.3]} 13. Nxe6 {[%clk 0:04:27.9]} 13... Nxf4 {[%clk 0:04:40]} 14.
Nxf8 {[%clk 0:04:23.4]} 14... Nxf8 {[%clk 0:04:38.8]} 15. g3 {[%clk 0:03:56.1]}
15... N4e6 {[%clk 0:04:35.2]} 16. b4 {[%clk 0:03:54.2]} 16... a5 {[%clk
0:04:30.9]} 17. a3 {[%clk 0:03:52.7]} 17... axb4 {[%clk 0:04:29.8]} 18. axb4
{[%clk 0:03:51.3]} 18... Ra8 {[%clk 0:04:29]} 19. Bh3 {[%clk 0:03:47.4]} 19...
g6 {[%clk 0:04:24.8]} 20. O-O {[%clk 0:03:45.5]} 20... Ra4 {[%clk 0:04:22.5]}
21. Rfe1 {[%clk 0:03:44.1]} 21... Rxb4 {[%clk 0:04:12.9]} 22. Nd4 {[%clk
0:03:33.6]} 22... Nxd4 {[%clk 0:04:00.9]} 23. Bxc8 {[%clk 0:03:30.3]} 23... Nf3+
{[%clk 0:03:59.3]} 0-1